fUSD/lending_fUSD_20251013
["ID","MTS","AMOUNT","RATE_DAILY","PERIOD"]
[391126561,1760374232566,-552.87924,0.0002,2]
[391126562,1760374232575,-166.66,0.00020052,2]
[391126563,1760374232584,-161.66668498,0.00020206,2]
[391126564,1760374232594,-166.66,0.00020441,2]
[391126565,1760374232603,-320.0,0.00020691,2]
[391126566,1760374232611,-2351.0,0.0002147,2]
[391126567,1760374232621,-552.87924,0.00022,2]
[391126568,1760374232630,-2511.7902686,0.00022297,2]
[391126569,1760374232639,-17199.9,0.00022397,2]
[391126570,1760374232649,-666.0,0.0002244,3]
[391126571,1760374232659,-2000.0,0.000225,2]
[391126572,1760374232668,-320.0,0.0002299,2]
[391126573,1760374232677,-2511.79026858,0.00023115,2]
[391126574,1760374232687,-300.0,0.00023508,2]
[391126575,1760374232697,-277.35679052,0.00023661,2]
[391126576,1760374232706,-369.8,0.00023836,2]
[391126577,1760374232715,-2511.79026858,0.00023933,2]
[391126578,1760374232725,-552.87923,0.00024,2]
[391126579,1760374232735,-1606.644,0.00024401,6]
[391126580,1760374232744,-1000.0,0.0002446,2]
[391126581,1760374232758,-1000.0,0.000246,2]
[391126582,1760374232767,-1000.0,0.00024658,2]
[391126583,1760374232776,-151.0,0.00024697,7]
[391126584,1760374232785,-34703.5177,0.000247,2]
[391126585,1760374232796,-2511.79026858,0.00024751,2]
[391126586,1760374232805,-475.32661018,0.000248,3]
[391126587,1760374232814,-300.0,0.00024877,2]
[391126588,1760374232825,-444.98,0.0002498,2]
[391126589,1760374232835,-200.0,0.00025163,2]
[391126590,1760374232844,-2511.79026858,0.00025569,2]
[391126591,1760374232853,-552.87924,0.00026,2]
[391126592,1760374232863,-600.0,0.00026027,2]
[391126593,1760374232871,-2000.0,0.000262,2]
[391126594,1760374232881,-2511.79026858,0.00026386,2]
[391126595,1760374232893,-7882.72321913,0.00026463,7]
[391126596,1760374234538,-8882.27678087,0.00026463,7]
[391126597,1760374234548,-475.32661018,0.00026463,7]
[391126598,1760374234558,-600.0,0.00026575,2]
[391126599,1760374234568,-175.87,0.00026767,2]
[391126600,1760374234577,-150.0,0.00026778,4]
[391126601,1760374234586,-150.0,0.00026778,4]
[391126602,1760374234596,-150.00000001,0.00026778,4]
[391126603,1760374234605,-150.0,0.00026778,4]
[391126604,1760374234615,-614.42,0.00026877,2]
[391126605,1760374234623,-474.51,0.00026877,2]
[391126606,1760374234633,-474.51,0.00026877,2]
[391126607,1760374234643,-477.44404713,0.00026877,2]
[391126608,1760374234653,-200.0,0.00026895,2]
[391126609,1760374234663,-1370.0,0.00027,2]
[391126610,1760374234673,-1317.79598455,0.00027,5]
[391126611,1760374234683,-600.0,0.00027123,2]
[391126612,1760374234693,-2511.79026858,0.00027204,2]
[391126613,1760374234702,-152.0,0.00027273,3]
[391126614,1760374234712,-175.94,0.00027288,2]
[391126615,1760374234721,-175.94,0.00027288,2]
[391126616,1760374234730,-175.94,0.00027288,2]
[391126617,1760374234740,-472.6070158,0.00027288,2]
[391126618,1760374234759,-73.6429842,0.00027288,2]
[391126619,1760374234770,-150.0,0.00027288,2]
[391126620,1760374234780,-173.99,0.00027288,2]
[391126621,1760374234791,-156.72,0.00027288,2]
[391126622,1760374234801,-168.14,0.00027288,2]
[391126623,1760374234810,-413.39,0.00027288,2]
[391126624,1760374234820,-150.0,0.00027288,2]
[391126625,1760374234830,-175.78,0.00027288,2]
[391126626,1760374234839,-150.0,0.00027288,2]
[391126627,1760374234850,-175.94,0.00027288,2]
[391126628,1760374234859,-150.0,0.00027288,2]
[391126629,1760374234869,-168.14,0.00027288,2]
[391126630,1760374234879,-413.39,0.00027288,2]
[391126631,1760374234888,-150.0,0.00027288,2]
[391126632,1760374234898,-150.0,0.00027288,2]
[391126633,1760374234908,-175.94,0.00027288,2]
[391126634,1760374234918,-150.0,0.00027288,2]
[391126635,1760374234928,-175.94,0.00027288,2]
[391126636,1760374234937,-150.0,0.00027288,2]
[391126637,1760374234946,-413.39,0.00027288,2]
[391126638,1760374234955,-168.14,0.00027288,2]
[391126639,1760374234966,-150.0,0.00027288,2]
[391126640,1760374234975,-150.0,0.00027288,2]
[391126641,1760374234984,-150.0,0.00027288,2]
[391126642,1760374234994,-175.94,0.00027288,2]
[391126643,1760374235003,-168.14,0.00027288,2]
[391126644,1760374235013,-413.39,0.00027288,2]
[391126645,1760374235022,-150.0,0.00027288,2]
[391126646,1760374235031,-175.94,0.00027288,2]
[391126647,1760374235040,-150.0,0.00027288,2]
[391126648,1760374235050,-168.14,0.00027288,2]
[391126649,1760374235059,-413.39,0.00027288,2]
[391126650,1760374235068,-175.94,0.00027288,2]
[391126651,1760374235077,-168.14,0.00027288,2]
[391126652,1760374235087,-413.39,0.00027288,2]
[391126653,1760374235096,-175.94,0.00027288,2]
[391126654,1760374235106,-168.14,0.00027288,2]
[391126655,1760374235115,-413.39,0.00027288,2]
[391126656,1760374235124,-175.94,0.00027288,2]
[391126657,1760374235133,-413.39,0.00027288,2]
[391126658,1760374235142,-353.36,0.00027288,2]
[391126659,1760374235152,-413.39,0.00027288,2]
[391126660,1760374235162,-413.39,0.00027288,2]
[391126661,1760374235171,-413.39,0.00027288,2]
[391126662,1760374235181,-410.59,0.00027288,2]
[391126663,1760374235190,-168.1454368,0.00027297,2]
[391126664,1760374235199,-171.95216703,0.00027297,2]
[391126665,1760374235208,-500.0,0.00027373,2]
[391126666,1760374235217,-500.0,0.00027373,2]
[391126667,1760374235227,-582.12131672,0.00027373,2]
[391126668,1760374235236,-500.0,0.00027373,2]
[391126669,1760374235245,-529.59492403,0.00027373,2]
[391126670,1760374235254,-501.87544709,0.00027373,2]
[391126671,1760374235263,-500.0,0.00027373,2]
[391126672,1760374235273,-500.0,0.00027373,2]
[391126673,1760374235282,-500.0,0.00027373,2]
[391126674,1760374235292,-500.0,0.00027373,2]
[391126675,1760374235301,-461.00697767,0.00027373,2]
[391126676,1760374235311,-500.0,0.00027373,2]
[391126677,1760374235320,-500.0,0.00027373,2]
[391126678,1760374235331,-7125.36099687,0.00027387,3]
[391126679,1760374235343,-1837.53114483,0.00027387,3]
[391126680,1760374235357,-98901.8013553,0.00027387,3]
[391126681,1760374235366,-151.0,0.00027387,7]
[391126682,1760374235376,-277.36413576,0.00027389,2]
[391126683,1760374235385,-272.9039212,0.00027389,2]
[391126684,1760374235396,-514.35717678,0.00027389,2]
[391126685,1760374235406,-172.70431311,0.00027389,2]
[391126686,1760374235415,-195.29709843,0.00027389,2]
[391126687,1760374235424,-151.494792,0.00027397,7]
[391126688,1760374235434,-151.0,0.00027397,7]
[391126689,1760374235443,-151.0,0.00027397,7]
[391126690,1760374235452,-9443.26,0.00027397,2]
[391126691,1760374235463,-9443.26,0.00027397,2]
[391126692,1760374235473,-9443.26,0.00027397,2]
[391126693,1760374235482,-9443.26,0.00027397,2]
[391126694,1760374235492,-9443.26,0.00027397,2]
[391126695,1760374235501,-9443.26,0.00027397,2]
[391126696,1760374235511,-9443.26,0.00027397,2]
[391126697,1760374235520,-9443.26,0.00027397,2]
[391126698,1760374235529,-9443.26,0.00027397,2]
[391126699,1760374235538,-9443.26,0.00027397,2]
[391126700,1760374235548,-9443.26,0.00027397,2]
[391126701,1760374235558,-9443.26,0.00027397,2]
[391126702,1760374235567,-151.0,0.00027397,7]
[391126703,1760374235577,-9443.26,0.00027397,2]
[391126704,1760374235587,-211.05269,0.00027397,7]
[391126705,1760374235596,-9443.26,0.00027397,2]
[391126706,1760374235606,-9443.26,0.00027397,2]
[391126707,1760374235615,-9443.26,0.00027397,2]
[391126708,1760374235625,-9443.26,0.00027397,2]
[391126709,1760374235634,-9443.26,0.00027397,2]
[391126710,1760374235643,-9443.26,0.00027397,2]
[391126711,1760374235660,-9443.26,0.00027397,2]
[391126712,1760374235669,-9443.26,0.00027397,2]
[391126713,1760374235678,-9443.26,0.00027397,2]
[391126714,1760374235688,-9443.26,0.00027397,2]
[391126715,1760374235697,-9443.33163837,0.00027397,2]
[391126716,1760374235706,-151.0,0.00027397,7]
[391126717,1760374235716,-151.0,0.00027397,7]
[391126718,1760374235725,-151.0,0.00027397,7]
[391126719,1760374235735,-151.0,0.00027397,7]
[391126720,1760374235744,-151.0,0.00027397,7]
[391126721,1760374235758,-151.0,0.00027397,7]
[391126722,1760374235767,-1000.0,0.00027397,15]
[391126723,1760374235776,-151.0,0.00027397,7]
[391126724,1760374235787,-151.0,0.00027397,7]
[391126725,1760374235797,-525.59909718,0.00027397,2]
[391126726,1760374235807,-320.0,0.00027587,120]
[391126727,1760374235817,-466.5,0.00027634,15]
[391126728,1760374235830,-1000.0,0.00027671,15]
[391126729,1760374235840,-886.58315309,0.00027768,2]
[391126730,1760374235850,-500.0,0.00027921,5]
[391126731,1760374235859,-248.14728145,0.00027945,15]
[391126732,1760374235868,-176.8681656,0.00027993,22]
[391126733,1760374235878,-1000.0,0.00028,2]
[391126734,1760374235887,-1000.0,0.00028,2]
[391126735,1760374235899,-1000.0,0.00028,2]
[391126736,1760374235910,-552.87924,0.00028,2]
[391126737,1760374235919,-1000.0,0.00028,2]
[391126738,1760374235928,-1000.0,0.00028,2]
[391126739,1760374235937,-1000.0,0.00028,2]
[391126740,1760374235946,-969.6226,0.00028,2]
[391126741,1760374235955,-2511.79026858,0.00028022,2]
[391126742,1760374235964,-499.12,0.000281,7]
[391126743,1760374235974,-160.64,0.000281,2]
[391126744,1760374235984,-72657.50613366,0.00028333,2]
[391126745,1760374235993,-150.0,0.00028347,120]
[391126746,1760374236002,-124411.07540849,0.00028364,2]
[391126747,1760374236018,-3136.83297878,0.00028364,2]
[391126748,1760374236029,-527.62363034,0.00028364,2]
[391126762,1760374238013,-500.0,0.00022396,2]
[391126763,1760374238023,-373.80082037,0.00022396,2]
[391126764,1760374238032,-45.57917963,0.00022396,2]
[391126938,1760374240000,-454.42082037,0.00022396,2]
[391126940,1760374240010,-161.92522945,0.00022396,2]
[391126942,1760374240019,-500.0,0.00022396,2]
[391126944,1760374240028,-500.0,0.00022396,2]
[391126946,1760374240037,-500.0,0.00022396,2]
[391126948,1760374240047,-500.0,0.00022396,2]
[391126950,1760374240056,-500.0,0.00022396,2]
[391126952,1760374240066,-500.0,0.00022396,2]
[391126954,1760374240075,-500.0,0.00022396,2]
[391126956,1760374240084,-500.0,0.00022396,2]
[391126958,1760374240093,-500.0,0.00022396,2]
[391126960,1760374240102,-500.0,0.00022396,2]
[391126962,1760374240111,-500.0,0.00022396,2]
[391126964,1760374240120,-500.0,0.00022396,2]
[391126966,1760374240130,-604.23950774,0.00022396,2]
[391126968,1760374240139,-500.0,0.00022396,2]
[391126970,1760374240148,-500.0,0.00022396,2]
[391126971,1760374240158,-500.0,0.00022396,2]
[391126972,1760374240167,-500.0,0.00022396,2]
[391126973,1760374240177,-500.0,0.00022396,2]
[391126974,1760374240186,-285.873,0.00026581,2]
[391126975,1760374240194,-7096.69253632,0.00028,3]
[391126978,1760374240587,-2197.08457004,0.00028,3]
[391126979,1760374242887,-5513.0,0.000192,5]
[391126980,1760374242897,-7030.61572658,0.00027297,2]
[391126981,1760374242908,-103689.33555464,0.00028,3]
[391126982,1760374242941,-1871.34113686,0.00028,3]
[391126983,1760374242952,-343.9177164,0.00028,3]
[391126984,1760374242995,-544.15,0.00028,3]
[391126985,1760374243006,-4435.96512541,0.00028,3]
[391126986,1760374243049,-490.14738516,0.00028,3]
[391126987,1760374243158,-2069.92364675,0.00028,3]
[391126988,1760374243170,-387.59124765,0.00028,3]
[391126994,1760374246266,-13109.97337492,0.00028,3]
[391126995,1760374246281,-636.367284,0.00028,3]
[391126996,1760374246317,-4148.19524719,0.00028,3]
[391126997,1760374452519,667.58238595,0.00027,120]
[391127015,1760375217137,300.0,0.00027397,120]
[391127018,1760375315616,227.77,0.000152,120]
[391127019,1760375403279,800.0,0.00026986,120]
[391127020,1760375403311,151.0,0.00027397,120]
[391127021,1760375403343,845.58416915,0.00027397,120]
[391127022,1760375403375,506.0,0.00027397,120]
[391127023,1760375419023,209.34220293,0.00027053,120]
[391127024,1760375420512,209.34220293,0.0002614,120]
[391127025,1760375421882,209.34220293,0.00025227,120]
[391127030,1760375431939,-402.37,0.00013699,2]
[391127031,1760375431949,-29.6240252,0.00015068,2]
[391127034,1760375432099,-2470.3759748,0.00015068,2]
[391127035,1760375432109,-2500.0,0.0001683,2]
[391127036,1760375432119,-1156.316,0.0001996,2]
[391127037,1760375432128,-150.0,0.00020172,2]
[391127038,1760375432138,-402.37,0.00020187,2]
[391127039,1760375432147,-161.66668499,0.00020432,2]
[391127040,1760375432157,-151.25,0.00020972,2]
[391127041,1760375432166,-176.85876666,0.000218,2]
[391127042,1760375432175,-475.32661018,0.0002187,2]
[391127043,1760375432184,-2000.0,0.000219,2]
[391127044,1760375432194,-683.31,0.00024,30]
[391127045,1760375432204,-1200.0,0.00024588,2]
[391127046,1760375432213,-500.0,0.00024589,2]
[391127047,1760375432225,-500.0,0.00024589,2]
[391127048,1760375432235,-513.65737504,0.00024589,2]
[391127049,1760375432246,-500.0,0.00024589,2]
[391127050,1760375432256,-500.0,0.00024589,2]
[391127052,1760375432266,-500.0,0.00024589,2]
[391127054,1760375432277,-726.39789342,0.00024589,2]
[391127056,1760375432286,-2000.0,0.000256,2]
[391127058,1760375432296,-1000.0,0.00026024,2]
[391127060,1760375432306,-200.0,0.00026046,2]
[391127062,1760375432315,-150.0,0.00026397,2]
[391127064,1760375432325,-1255.55,0.00026535,30]
[391127065,1760375432335,-402.37,0.00026676,2]
[391127066,1760375432344,-150.0,0.00026778,4]
[391127068,1760375432354,-152.0,0.00026882,3]
[391127070,1760375432364,-152.59,0.00027018,7]
[391127071,1760375432373,-152.59,0.00027118,7]
[391127072,1760375432382,-1197.33368599,0.00027184,15]
[391127078,1760375437970,-563.94852852,0.00027184,15]
[391127079,1760375438132,-321.37378549,0.00027184,15]
[391127080,1760375438145,-760.23,0.00027184,2]
[391127081,1760375438155,-176.078,0.00027184,15]
[391127082,1760375438165,-500.0,0.00027187,2]
[391127083,1760375438175,-500.0,0.00027187,2]
[391127084,1760375438185,-500.0,0.00027187,2]
[391127085,1760375438195,-500.0,0.00027187,2]
[391127086,1760375438204,-500.0,0.00027187,2]
[391127087,1760375438214,-550.70177346,0.00027187,2]
[391127088,1760375438227,-500.0,0.00027187,2]
[391127089,1760375438237,-31.68113185,0.00027187,2]
[391127090,1760375438249,-468.31886815,0.00027187,2]
[391127091,1760375438258,-500.0,0.00027187,2]
[391127092,1760375438268,-414.63045113,0.00027187,2]
[391127093,1760375438279,-1249.75000001,0.00027187,2]
[391127094,1760375438289,-500.74525448,0.00027188,2]
[391127095,1760375438299,-36663.6837,0.00027188,2]
[391127096,1760375438308,-152.59,0.00027218,7]
[391127097,1760375438318,-152.59,0.00027318,7]
[391127098,1760375438328,-152.59,0.00027418,15]
[391127099,1760375438338,-378.68094812,0.00027418,2]
[391127100,1760375438347,-260.44286634,0.00027498,7]
[391127101,1760375438358,-152.59,0.00027518,15]
[391127102,1760375438368,-1000.0,0.00027521,2]
[391127103,1760375438378,-485.61,0.00027565,2]
[391127104,1760375438388,-152.59,0.00027618,15]
[391127105,1760375438397,-152.59,0.00027718,15]
[391127106,1760375438407,-664.93736482,0.00027768,2]
[391127107,1760375438417,-400.02006951,0.0002777,15]
[391127108,1760375438427,-151.45895945,0.0002779,2]
[391127109,1760375438436,-5000.0,0.00027818,3]
[391127110,1760375438446,-152.59,0.00027818,15]
[391127111,1760375438456,-151.0,0.00027869,2]
[391127113,1760375438465,-151.0,0.00027869,2]
[391127115,1760375438477,-151.0,0.00027869,2]
[391127117,1760375438487,-151.0,0.00027869,2]
[391127119,1760375438496,-151.0,0.00027869,2]
[391127121,1760375438505,-151.0,0.00027869,2]
[391127123,1760375438515,-151.0,0.00027869,2]
[391127125,1760375438525,-151.0,0.00027869,2]
[391127127,1760375438534,-180.49,0.00027876,10]
[391127128,1760375438544,-15093.33831392,0.00027886,2]
[391127130,1760375438556,-18281.09915561,0.00027886,2]
[391127132,1760375438567,-394.14575585,0.00027886,2]
[391127135,1760375438580,-3651.648,0.00027886,2]
[391127137,1760375438596,-275.8806438,0.00027886,2]
[391127139,1760375438607,-317.98127747,0.00027886,2]
[391127214,1760375440024,-53943.93756755,0.00027886,2]
[391127215,1760375440035,-2500.0,0.0002789,2]
[391127216,1760375440045,-152.0,0.000279,4]
[391127217,1760375440054,-3001.4611,0.000279,2]
[391127218,1760375440067,-1000.0,0.000279,2]
[391127219,1760375440078,-1000.0,0.000279,2]
[391127220,1760375440088,-6327.55415394,0.00027908,2]
[391127221,1760375440098,-168.14543679,0.00027918,2]
[391127222,1760375440109,-152.59,0.00027918,15]
[391127223,1760375440119,-209.34220293,0.00027967,120]
[391127224,1760375440128,-258.95697188,0.00027989,2]
[391127225,1760375440138,-170.38917001,0.00027989,2]
[391127226,1760375440150,-252.30507139,0.00027989,2]
[391127227,1760375440160,-498.7095172,0.00027989,2]
[391127228,1760375440170,-42321.4338815,0.0002799,3]
[391127229,1760375440179,-500.17548106,0.00027999,2]
[391127231,1760375440190,-600.0,0.00027999,7]
[391127232,1760375440200,-600.0,0.00027999,7]
[391127234,1760375440210,-527.72,0.00028,2]
[391127235,1760375440220,-177087.98508018,0.00028,3]
[391127236,1760375440230,-171.95216703,0.00028018,2]
[391127237,1760375440240,-152.59,0.00028018,15]
[391127238,1760375440250,-500.0,0.00028073,3]
[391127239,1760375440259,-6327.55415391,0.00028104,2]
[391127240,1760375440270,-1000.0,0.00028109,120]
[391127241,1760375440279,-1000.0,0.00028109,120]
[391127242,1760375440289,-739.426,0.00028109,120]
[391127243,1760375440299,-152.59,0.00028118,15]
[391127244,1760375440308,-151.45895945,0.00028164,2]
[391127245,1760375440318,-152.59,0.00028218,15]
[391127246,1760375440330,-152.59,0.00028318,15]
[391127247,1760375440340,-248.0,0.00028334,120]
[391127248,1760375440350,-500.0,0.00028336,2]
[391127249,1760375440359,-700.0,0.0002834,120]
[391127250,1760375440369,-10180.60724301,0.00028364,2]
[391127251,1760375440378,-576.34005633,0.00028364,2]
[391127252,1760375440388,-154.0,0.00028364,3]
[391127253,1760375440398,-160.0,0.00028364,3]
[391127254,1760375440407,-156.0,0.00028364,3]
[391127255,1760375440417,-151.0,0.00028364,3]
[391127256,1760375440427,-151.0,0.00028364,3]
[391127258,1760375440436,-686.50445507,0.00028364,3]
[391127259,1760375440446,-154.0,0.00028364,3]
[391127260,1760375440455,-160.0,0.00028364,3]
[391127261,1760375440465,-156.0,0.00028364,3]
[391127262,1760375440474,-151.0,0.00028364,3]
[391127263,1760375440486,-151.0,0.00028364,3]
[391127264,1760375440496,-154.0,0.00028364,3]
[391127265,1760375440505,-160.0,0.00028364,3]
[391127266,1760375440518,-156.0,0.00028364,3]
[391127267,1760375440527,-151.0,0.00028364,3]
[391127268,1760375440537,-151.0,0.00028364,3]
[391127269,1760375440547,-168.00173962,0.00028364,3]
[391127270,1760375440556,-154.0,0.00028364,3]
[391127271,1760375440566,-151.0,0.00028364,3]
[391127272,1760375440575,-151.0,0.00028364,3]
[391127273,1760375440585,-821.0,0.00028364,3]
[391127274,1760375440594,-154.0,0.00028364,3]
[391127275,1760375440604,-151.0,0.00028364,3]
[391127276,1760375440613,-151.0,0.00028364,3]
[391127277,1760375440623,-154.0,0.00028364,3]
[391127278,1760375440632,-821.0,0.00028364,3]
[391127279,1760375440642,-151.0,0.00028364,3]
[391127280,1760375440652,-151.0,0.00028364,3]
[391127281,1760375440662,-156.0,0.00028364,3]
[391127282,1760375440672,-821.0,0.00028364,3]
[391127283,1760375440682,-151.0,0.00028364,3]
[391127284,1760375440692,-156.0,0.00028364,3]
[391127285,1760375440701,-821.0,0.00028364,3]
[391127286,1760375440714,-166.91161224,0.00028364,3]
[391127287,1760375440724,-159.81453746,0.00028364,3]
[391127288,1760375440736,-821.0,0.00028364,3]
[391127289,1760375440746,-151.0,0.00028364,3]
[391127290,1760375440756,-151.0,0.00028364,3]
[391127291,1760375440766,-151.0,0.00028364,3]
[391127292,1760375440775,-151.0,0.00028364,3]
[391127293,1760375440786,-151.0,0.00028364,3]
[391127294,1760375440795,-151.0,0.00028364,3]
[391127295,1760375440805,-151.0,0.00028364,3]
[391127296,1760375440815,-151.0,0.00028364,3]
[391127297,1760375440824,-208.22704693,0.00028364,3]
[391127298,1760375440834,-151.0,0.00028364,3]
[391127299,1760375440844,-151.0,0.00028364,3]
[391127300,1760375440853,-151.0,0.00028364,3]
[391127301,1760375440863,-151.0,0.00028364,3]
[391127302,1760375440872,-151.0,0.00028364,3]
[391127303,1760375440883,-151.0,0.00028364,3]
[391127304,1760375440893,-151.0,0.00028364,3]
[391127305,1760375440905,-151.0,0.00028364,3]
[391127306,1760375440915,-151.0,0.00028364,3]
[391127307,1760375440925,-151.0,0.00028364,3]
[391127308,1760375440935,-222.22848969,0.00028364,3]
[391127309,1760375440946,-821.0,0.00028364,3]
[391127310,1760375440956,-821.0,0.00028364,3]
[391127311,1760375440966,-821.0,0.00028364,3]
[391127312,1760375440976,-821.0,0.00028364,3]
[391127313,1760375440987,-821.0,0.00028364,3]
[391127314,1760375440997,-821.0,0.00028364,3]
[391127315,1760375441007,-821.0,0.00028364,3]
[391127316,1760375441017,-746.25929594,0.00028364,3]
[391127317,1760375441027,-8946.79458024,0.00028369,2]
[391127318,1760375441037,-113120.06935082,0.00028377,2]
[391127319,1760375443056,-4018.70472461,0.00028377,2]
[391127320,1760375443069,-1442.61051691,0.00028377,2]
[391127321,1760375443084,-424.98520001,0.00028377,2]
[391127322,1760375443095,-911.45239352,0.00028377,2]
[391127323,1760375443106,-18338.31707475,0.00028377,2]
[391127324,1760375443117,-13850.48296113,0.00028381,2]
[391127325,1760375443128,-11483.86116475,0.00028381,2]
[391127326,1760375443140,-574.3999999,0.00028381,2]
[391127327,1760375443151,-406.78185936,0.00028381,2]
[391127328,1760375443186,-600.0,0.00027999,7]
[391127329,1760375443195,-629.38140234,0.00027999,7]
[391127330,1760375443204,-9949.85399766,0.00028381,2]
[391127336,1760375445978,-6327.55415391,0.00028299,2]
[391127337,1760375445991,-27244.93608069,0.00028381,2]
[391127338,1760375446083,-43022.52585654,0.00028381,2]
[391127339,1760375446138,-582.54798684,0.00028381,2]
[391127340,1760375446245,-592.1533885,0.00028381,2]
[391127341,1760375446256,-646.0500007,0.00028381,2]
[391127342,1760375446268,-4167.3312,0.00028381,2]
[391127346,1760375459300,584.207,0.00027397,120]
[391127347,1760375498935,939.0,0.00027397,120]
[391127348,1760375505605,274.99,0.000152,120]
[391127349,1760375521466,300.0,0.00027397,120]
[391127350,1760375697727,247.49,0.000152,120]
[391127351,1760375703108,506.0,0.00027397,120]
[391127352,1760375829599,300.0,0.00027397,120]
[391127353,1760375882623,1500.0,0.00027,120]
[391127354,1760375888909,222.74,0.000152,120]
[391127355,1760375900321,287.0,0.00027261,120]
[391127356,1760375918294,1026.3857183,0.0002739,120]
[391127357,1760375923609,1251.0,0.00027,120]
[391127358,1760376003107,164.48927794,0.00027397,120]
[391127359,1760376038601,453.26676321,0.00027397,120]
[391127360,1760376039765,317.16333816,0.00027397,120]
[391127361,1760376040874,310.35816691,0.00027397,120]
[391127362,1760376044202,310.01790835,0.00027397,120]
[391127363,1760376044246,310.00089542,0.00027397,120]
[391127364,1760376080432,200.47,0.000152,120]
[391127365,1760376136093,300.0,0.00027397,120]
[391127367,1760376230506,150.0,0.00027397,120]
[391127368,1760376231184,150.0,0.00027397,120]
[391127369,1760376271783,180.42,0.000152,120]
[391127370,1760376286638,703.78509628,0.000273,120]
[391127371,1760376331419,986.17653668,0.0002,120]
[391127374,1760376429176,1000.0,0.00027397,120]
[391127375,1760376442381,300.0,0.00027397,120]
[391127376,1760376462913,162.38,0.000152,120]
[391127377,1760376463558,690.65006751,0.00027,120]
[391127378,1760376466564,857.80989628,0.00027,120]
[391127379,1760376487260,1000.0,0.00027397,120]
[391127380,1760376498888,16635.61101475,0.00027397,120]
[391127381,1760376506270,720.12148418,0.00027,120]
[391127382,1760376510191,900.49113968,0.000199,120]
[391127383,1760376512405,341.74,0.0002,120]
[391127384,1760376514813,619.12759041,0.0001,120]
[391127385,1760376515598,444.19659629,0.00022,120]
[391127386,1760376519916,214.31473624,0.00025,120]
[391127388,1760376521426,167.19620997,0.0002739,120]
[391127389,1760376521697,200.09239447,0.00021,120]
[391127390,1760376545542,1000.0,0.00027397,120]
[391127393,1760376597420,1000.0,0.00027397,120]
[391127408,1760376632159,-247.56446448,0.000135,2]
[391127409,1760376632168,-166.33934864,0.00013599,2]
[391127410,1760376632180,-333.66065136,0.00013599,2]
[391127411,1760376632189,-1381.93934864,0.00013938,2]
[391127412,1760376632324,-196.81815416,0.00013938,2]
[391127413,1760376632335,-172.39069942,0.00014177,2]
[391127414,1760376632345,-300.0,0.00014277,2]
[391127415,1760376632354,-900.0,0.000146,5]
[391127416,1760376632364,-399.79897179,0.00014694,2]
[391127417,1760376632374,-30.99217463,0.000147,5]
[391127418,1760376632390,-1359.28629547,0.000147,5]
[391127419,1760376632405,-409.7215299,0.000147,5]
[391127420,1760376632415,-1200.0,0.00014799,2]
[391127421,1760376632425,-2700.0,0.000148,5]
[391127422,1760376632443,-250.0,0.0001485,2]
[391127423,1760376632452,-2500.0,0.0001485,2]
[391127424,1760376632461,-195.0,0.0001485,2]
[391127425,1760376632473,-300.0,0.00014899,2]
[391127426,1760376632483,-300.0,0.00014899,2]
[391127427,1760376632493,-3600.0,0.000149,5]